bitfinex/quotes_BTCUSD_20251209
["timestamp","ask_amount","ask_price","bid_price","bid_amount"]
[1765282590355,0.00115833,90569.0,90568.0,0.22429097]
[1765282593895,0.00115833,90569.0,90568.0,0.24620729]
[1765282594481,0.00115833,90569.0,90568.0,0.22429097]
[1765282598531,0.00115833,90569.0,90568.0,0.2287154]
[1765282599295,0.01678833,90569.0,90568.0,0.22429097]
[1765282599966,0.04009833,90569.0,90568.0,0.22429097]
[1765282600909,0.00115833,90569.0,90568.0,0.22429097]
[1765282609102,0.00115833,90569.0,90568.0,0.24620729]
[1765282609235,0.00115833,90569.0,90568.0,0.30527099]
[1765282609459,0.00115833,90569.0,90568.0,0.24620729]
[1765282610044,0.00115833,90569.0,90568.0,0.56920729]
[1765282610255,4e-05,90577.0,90568.0,0.56920729]
[1765282610256,4e-05,90577.0,90576.0,0.23080722]
[1765282610475,4e-05,90577.0,90576.0,0.24970965]
[1765282611316,4e-05,90577.0,90576.0,0.31223264]
[1765282611716,4e-05,90577.0,90576.0,0.63523264]
[1765282611919,4e-05,90577.0,90576.0,0.63493269]
[1765282612778,0.0004,90590.0,90589.0,0.24275361]
[1765282612931,0.0004,90590.0,90589.0,0.26165604]
[1765282613386,0.0004,90590.0,90589.0,0.2719843]
[1765282614524,0.0004,90590.0,90589.0,0.2749843]
[1765282615284,0.0004,90590.0,90589.0,0.25800804]
[1765282615645,0.0004,90590.0,90589.0,0.33918189]
[1765282615842,0.0004,90590.0,90589.0,0.33618189]
[1765282616161,0.0004,90590.0,90589.0,0.33418189]
[1765282616348,0.0004,90590.0,90589.0,0.33818189]
[1765282616677,0.00102344,90590.0,90589.0,0.33818189]
[1765282617082,0.00102344,90590.0,90589.0,0.2789843]
[1765282617383,0.00102344,90590.0,90589.0,0.33816582]
[1765282618623,0.00102344,90590.0,90589.0,0.2789843]
[1765282619770,0.00140938,90590.0,90589.0,0.2789843]
[1765282621021,0.00140938,90590.0,90589.0,0.7475843]
[1765282623126,0.00140938,90590.0,90589.0,0.73725604]
[1765282630984,0.00140938,90590.0,90589.0,0.71527978]
[1765282631198,0.00140938,90590.0,90589.0,0.69783978]
[1765282631353,0.00140938,90590.0,90589.0,0.73725604]
[1765282632416,0.00140938,90590.0,90589.0,0.59165604]
[1765282633603,0.00140938,90590.0,90589.0,0.56967978]
[1765282634994,0.00140938,90590.0,90589.0,0.59165604]
[1765282635964,0.00140938,90590.0,90589.0,0.67062164]
[1765282636949,0.00140938,90590.0,90589.0,0.59165604]
[1765282637156,0.00140938,90590.0,90589.0,0.67059869]
[1765282637332,0.00140938,90590.0,90589.0,0.59165604]
[1765282646490,0.00140938,90590.0,90589.0,0.69036778]
[1765282646900,0.00140938,90590.0,90589.0,0.59165604]
[1765282647280,0.00160069,90600.0,90599.0,0.22075298]
[1765282647449,0.0004,90610.0,90609.0,0.56570488]
[1765282647651,0.0004,90610.0,90609.0,0.58460731]
[1765282647807,0.0004,90610.0,90609.0,0.68354911]
[1765282648211,0.0004,90620.0,90617.0,0.56568539]
[1765282648409,0.0004,90620.0,90617.0,0.56714782]
[1765282649244,0.05299533,90618.0,90615.0,0.07900875]
[1765282649583,0.05299533,90618.0,90614.0,0.02965255]
[1765282649584,0.0163,90616.0,90614.0,0.02965255]
[1765282649730,0.0163,90616.0,90615.0,0.2427854]
[1765282649943,0.0163,90616.0,90615.0,0.220714]
[1765282650142,0.0163,90616.0,90615.0,0.2427854]
[1765282650343,0.0028,90618.0,90616.0,0.22071096]
[1765282650544,0.0163,90617.0,90616.0,0.02964822]
[1765282650961,0.0163,90617.0,90590.0,0.3372358]
[1765282650962,0.01103594,90613.0,90610.0,0.02964822]
[1765282651161,0.0163,90611.0,90609.0,0.02964822]
[1765282651367,0.24358131,90612.0,90608.0,0.04068477]
[1765282651566,0.23175096,90615.0,90608.0,0.04068477]
[1765282651567,0.01242,90611.0,90610.0,0.22072598]
[1765282651722,0.23174802,90616.0,90612.0,0.22072131]
[1765282651919,0.01103557,90616.0,90612.0,0.23175737]
[1765282652105,0.22370968,90617.0,90613.0,0.22071873]
[1765282652308,0.24656968,90617.0,90613.0,0.22071873]
[1765282652507,0.24656968,90617.0,90613.0,0.23175467]
[1765282652508,0.0163,90614.0,90613.0,0.23175467]
[1765282652931,0.0163,90614.0,90613.0,0.22071888]
[1765282653355,0.01701223,90614.0,90613.0,0.22071888]
[1765282654384,0.01901223,90614.0,90613.0,0.22071888]
[1765282654595,0.02001223,90614.0,90613.0,0.22071888]
[1765282654727,0.00371223,90614.0,90613.0,0.2503671]
[1765282655138,0.00371223,90614.0,90613.0,0.22071888]
[1765282656375,0.00071223,90614.0,90613.0,0.22071888]
[1765282656603,0.00171223,90614.0,90613.0,0.22071888]
[1765282657723,0.04087223,90614.0,90612.0,0.23175715]
[1765282657953,0.001,90614.0,90613.0,0.22071888]
[1765282661449,0.0173,90614.0,90613.0,0.22071888]
[1765282661683,0.0173,90614.0,90612.0,0.23175715]
[1765282661684,0.04016,90614.0,90612.0,0.23175715]
[1765282661922,0.0163,90613.0,90612.0,0.23175715]
[1765282662055,0.001,90614.0,90613.0,0.22071888]
[1765282664187,0.04016,90614.0,90613.0,0.22071888]
[1765282664395,0.0173,90614.0,90613.0,0.22071888]
[1765282664594,0.01801223,90614.0,90613.0,0.22071888]
[1765282664796,0.00171223,90614.0,90613.0,0.22071888]
[1765282665930,0.00171223,90614.0,90613.0,0.22218131]
[1765282666336,0.00171223,90614.0,90613.0,0.24415757]
[1765282667034,0.00071223,90614.0,90613.0,0.24415757]
[1765282667188,0.00071223,90614.0,90613.0,0.24615757]
[1765282667581,0.00071223,90614.0,90613.0,0.24515757]
[1765282668853,0.00071223,90614.0,90613.0,0.24715757]
[1765282669392,0.00071223,90614.0,90613.0,0.24615757]
[1765282669803,0.00071223,90614.0,90613.0,0.21815757]
[1765282670012,0.00071223,90614.0,90613.0,0.22015757]
[1765282670442,0.00071223,90614.0,90613.0,0.29916632]
[1765282671326,0.00071223,90614.0,90613.0,0.22015757]
[1765282673849,0.00071223,90614.0,90613.0,0.54315757]
[1765282681345,0.00071223,90614.0,90613.0,0.62216632]
[1765282681548,0.0028,90618.0,90617.0,0.56568539]
[1765282681747,0.0028,90618.0,90617.0,0.56714782]
[1765282681956,0.0028,90618.0,90617.0,0.62967081]
[1765282682162,1e-08,90620.0,90619.0,0.61622543]
[1765282682364,0.0004,90630.0,90629.0,0.54367991]
[1765282682542,0.00051562,90630.0,90629.0,0.5845586]
[1765282684634,9e-05,90658.0,90657.0,0.22061175]
[1765282684839,0.0158256,90658.0,90657.0,0.25013313]
[1765282684972,0.0407956,90658.0,90657.0,0.23805175]
[1765282685180,0.0002056,90658.0,90657.0,0.23805175]
[1765282685830,0.0002056,90658.0,90657.0,0.2675738]
[1765282686038,0.0002056,90658.0,90657.0,0.23805175]
[1765282686241,0.0002056,90658.0,90657.0,0.23951418]
[1765282687607,0.00151054,90658.0,90657.0,0.23951418]
[1765282690112,0.00151054,90658.0,90657.0,0.26149044]
[1765282691739,0.00151054,90658.0,90657.0,0.29095734]
[1765282691976,0.00151054,90658.0,90657.0,0.29195734]
[1765282692183,0.00151054,90658.0,90657.0,0.29295734]
[1765282693205,0.00151054,90658.0,90657.0,0.04287869]
[1765282693405,0.03953054,90658.0,90657.0,0.22407418]
[1765282693606,0.03953054,90658.0,90657.0,0.01944]
[1765282693769,0.26013986,90658.0,90657.0,0.002]
[1765282694319,0.23165683,90652.0,90649.0,0.01103156]
[1765282694541,0.02663,90650.0,90648.0,0.01103168]
[1765282694747,0.01148,90650.0,90649.0,0.22063122]
[1765282695224,0.02663,90650.0,90649.0,0.22063122]
[1765282695427,0.0495,90650.0,90649.0,0.22163122]
[1765282695840,0.0495,90650.0,90649.0,0.22263122]
[1765282696629,0.01148,90656.0,90655.0,0.22061662]
[1765282697088,0.0495,90656.0,90654.0,0.22061894]
[1765282697260,0.03435,90656.0,90654.0,0.22061894]
[1765282697579,0.03802,90655.0,90654.0,0.22061894]
[1765282700225,0.03802,90655.0,90654.0,0.22161894]
[1765282700576,0.03923601,90655.0,90654.0,0.001]
[1765282700766,0.03923601,90655.0,90654.0,0.22161905]
[1765282705441,0.01754601,90655.0,90654.0,0.22161905]
[1765282705605,0.04252601,90655.0,90654.0,0.22161905]
[1765282706019,0.01754601,90655.0,90654.0,0.22161905]
[1765282706223,0.04252601,90655.0,90654.0,0.22161905]
[1765282711382,0.04252601,90655.0,90654.0,0.25108595]
[1765282716145,0.04252601,90655.0,90654.0,0.22161905]
[1765282718315,0.00121601,90655.0,90654.0,0.22161905]
[1765282720479,0.00121601,90655.0,90654.0,0.22308148]
[1765282720624,0.00121601,90655.0,90654.0,0.24505774]
[1765282722279,0.00121601,90655.0,90654.0,0.22308148]
[1765282724005,0.00121601,90655.0,90654.0,0.24505774]
[1765282724433,0.00121601,90655.0,90654.0,0.22308148]
[1765282724614,0.00121601,90655.0,90654.0,0.24505774]
[1765282726105,0.00121601,90655.0,90654.0,0.22308148]
[1765282726470,0.00121601,90655.0,90654.0,0.24505774]
[1765282730937,0.00121601,90655.0,90654.0,0.22308148]
[1765282731345,0.00121601,90655.0,90654.0,0.24052148]
[1765282731548,0.00121601,90655.0,90654.0,0.29969961]
[1765282731817,0.00121601,90655.0,90654.0,0.28225961]
[1765282731956,0.00121601,90655.0,90654.0,0.29969961]
[1765282732988,0.01754601,90655.0,90654.0,0.28225961]
[1765282733193,0.04252601,90655.0,90654.0,0.24052148]
[1765282734297,0.00121601,90655.0,90654.0,0.24052148]
[1765282734705,0.00121601,90655.0,90654.0,0.22308148]
[1765282737085,0.00121601,90655.0,90654.0,0.24505774]
[1765282737293,0.00121601,90655.0,90654.0,0.30423587]
[1765282738735,0.00121601,90655.0,90654.0,0.24505774]
[1765282743771,0.00121601,90655.0,90654.0,0.26249774]
[1765282744093,0.00121601,90655.0,90654.0,0.58549774]
[1765282745305,0.00121601,90655.0,90654.0,0.57651966]
[1765282745469,0.00121601,90655.0,90654.0,0.65537272]
[1765282745682,0.00121601,90655.0,90654.0,0.65437272]
[1765282746081,0.00121601,90655.0,90654.0,0.65637272]
[1765282746532,0.00121601,90655.0,90654.0,0.65437272]
[1765282746848,0.00121601,90655.0,90654.0,0.65637272]
[1765282747034,0.00121601,90655.0,90654.0,0.6683508]
[1765282747215,0.00121601,90655.0,90654.0,0.58949774]
[1765282747544,0.00121601,90655.0,90654.0,0.22708148]
[1765282747545,0.03927601,90655.0,90654.0,0.22708148]
[1765282747720,0.03927601,90655.0,90654.0,0.28624202]
[1765282748119,0.00121601,90655.0,90654.0,0.22708148]
[1765282748318,0.01320601,90655.0,90654.0,0.22708148]
[1765282748539,0.01320601,90655.0,90654.0,0.22408148]
[1765282748702,0.01320601,90655.0,90654.0,0.23952148]
[1765282749851,0.00121601,90655.0,90654.0,0.23952148]
[1765282750952,0.00121601,90655.0,90654.0,0.22208148]
[1765282751149,0.00121601,90655.0,90654.0,0.23952148]
[1765282752156,0.01320601,90655.0,90654.0,0.24052148]
[1765282752335,0.00121601,90655.0,90654.0,0.24052148]
[1765282754478,0.00121601,90655.0,90654.0,0.26249774]
[1765282758147,0.00121601,90655.0,90654.0,0.24052148]
[1765282758553,0.00121601,90655.0,90654.0,0.25051966]
[1765282759201,0.00121601,90655.0,90654.0,0.3283743]
[1765282759516,0.00121601,90655.0,90654.0,0.25051966]
[1765282759679,0.00121601,90655.0,90654.0,0.25151966]
[1765282760312,0.00121601,90655.0,90654.0,0.57451966]
[1765282760532,0.00121601,90655.0,90654.0,0.57351966]
[1765282760815,0.00121601,90655.0,90654.0,0.57551966]
[1765282760971,0.00121601,90655.0,90654.0,0.57851966]
[1765282763492,0.00048601,90655.0,90654.0,0.64104265]
[1765282764139,0.2504,90690.0,90673.0,0.02197626]
[1765282764291,0.2504,90690.0,90673.0,0.28350879]
[1765282764488,0.2504,90690.0,90673.0,0.26145151]
[1765282765310,0.0004,90690.0,90673.0,0.58445151]
[1765282766334,0.0004,90690.0,90689.0,0.56353027]
[1765282766684,0.00078525,90690.0,90689.0,0.5824327]
[1765282767040,0.00078525,90690.0,90689.0,0.57380634]
[1765282767245,0.00078525,90690.0,90689.0,0.25080634]
[1765282767447,0.00078525,90690.0,90689.0,0.22199634]
[1765282767649,0.00078525,90690.0,90689.0,0.22399634]
[1765282768070,0.00078525,90690.0,90689.0,0.26433426]
[1765282768232,0.00078525,90690.0,90689.0,0.22499634]
[1765282768442,0.04189525,90690.0,90689.0,0.22253391]
[1765282768885,0.04189525,90690.0,90686.0,0.25987674]
[1765282768886,0.04289525,90690.0,90686.0,0.01102706]
[1765282769063,0.01629,90687.0,90686.0,0.23156596]
[1765282769503,0.04111,90687.0,90686.0,0.23156596]
[1765282770612,0.01629,90687.0,90686.0,0.23156596]
[1765282770812,0.04111,90687.0,90686.0,0.23156596]
[1765282770985,0.04205853,90687.0,90686.0,0.23156596]
[1765282771772,0.00094853,90687.0,90686.0,0.23156596]
[1765282773238,0.00094853,90687.0,90686.0,0.25354222]
[1765282774207,0.00094853,90687.0,90686.0,0.23156596]
[1765282774512,0.01723853,90687.0,90686.0,0.26105258]
[1765282775509,0.00094853,90687.0,90686.0,0.26105258]
[1765282775711,0.01723853,90687.0,90686.0,0.26105258]
[1765282775916,0.04205853,90687.0,90686.0,0.23156596]
[1765282776118,0.01723853,90687.0,90686.0,0.23156596]
[1765282777159,0.01723853,90687.0,90686.0,0.01102706]
[1765282777160,0.04205853,90687.0,90686.0,0.01102706]
[1765282777319,0.04205853,90687.0,90686.0,0.23156826]
[1765282778213,0.05308546,90687.0,90684.0,0.22054545]
[1765282778387,0.01629,90686.0,90684.0,0.0110273]
[1765282778547,0.01717927,90685.0,90684.0,0.23157337]
[1765282778946,0.04199927,90685.0,90684.0,0.23157337]
[1765282779750,0.01717927,90685.0,90684.0,0.23157337]
[1765282780159,0.01917927,90685.0,90684.0,0.23157337]
[1765282780671,0.01717927,90685.0,90684.0,0.23157337]
[1765282781103,0.01817927,90685.0,90684.0,0.23157337]
[1765282783161,0.01817927,90685.0,90684.0,0.26105999]
[1765282783334,0.00188927,90685.0,90684.0,0.26252242]
[1765282783518,0.00188927,90685.0,90684.0,0.2330358]
[1765282784171,0.00088927,90685.0,90684.0,0.2330358]
[1765282784603,0.00088927,90685.0,90684.0,0.26254245]
[1765282785209,0.00088927,90685.0,90684.0,0.2330358]
[1765282785544,0.01817927,90685.0,90684.0,0.2330358]
[1765282785743,0.04299927,90685.0,90684.0,0.2330358]
[1765282785971,0.04199927,90685.0,90684.0,0.2330358]
[1765282786425,0.04299927,90685.0,90684.0,0.2330358]
[1765282786578,0.04299927,90685.0,90684.0,0.23157337]
[1765282787468,0.01817927,90685.0,90684.0,0.23157337]
[1765282788071,0.00188927,90685.0,90684.0,0.23157337]
[1765282789099,0.00188927,90685.0,90684.0,0.27091129]
[1765282789294,0.04299927,90685.0,90684.0,0.23157337]
[1765282790095,0.04299927,90685.0,90684.0,0.27091129]
[1765282790487,0.01817927,90685.0,90684.0,0.27091129]
[1765282790963,0.04299927,90685.0,90684.0,0.27091129]
[1765282791494,0.00188927,90685.0,90684.0,0.27091129]
[1765282792215,0.00188927,90685.0,90684.0,0.23157337]
[1765282794163,0.00188927,90685.0,90684.0,0.2330358]
[1765282794617,0.00188927,90685.0,90684.0,0.24303398]
[1765282795380,0.00088927,90685.0,90684.0,0.24303398]
[1765282795696,0.00088927,90685.0,90684.0,0.24403398]
[1765282796247,0.00088927,90685.0,90684.0,0.24303398]
[1765282796443,0.00088927,90685.0,90684.0,0.32375832]
[1765282797368,0.00088927,90685.0,90684.0,0.32575832]
[1765282797769,0.00088927,90685.0,90684.0,0.32375832]
[1765282797991,0.00088927,90685.0,90684.0,0.32675832]
[1765282798773,0.00088927,90685.0,90684.0,0.24803398]
[1765282798974,0.00088927,90685.0,90684.0,0.326845]
[1765282799178,0.00088927,90685.0,90684.0,0.32683258]
[1765282801356,0.00088927,90685.0,90684.0,0.64983258]
[1765282801558,0.00088927,90685.0,90684.0,0.57103398]
[1765282807045,1e-08,90685.0,90684.0,0.63355697]
[1765282807690,1e-08,90685.0,90684.0,0.77915697]
[1765282808387,1e-08,90685.0,90684.0,0.73407398]
[1765282808739,1e-08,90685.0,90684.0,0.2380358]
[1765282809144,0.03935001,90685.0,90684.0,0.23657337]
[1765282809387,0.01539001,90685.0,90684.0,0.23657337]
[1765282809765,0.01539001,90685.0,90684.0,0.23457337]
[1765282809991,1e-08,90685.0,90684.0,0.23457337]
[1765282810286,1e-08,90685.0,90684.0,0.23157337]
[1765282810439,1e-08,90685.0,90684.0,0.29061846]
[1765282810635,1e-08,90685.0,90684.0,0.29161846]
[1765282813854,1e-08,90685.0,90684.0,0.29308089]
[1765282814012,1e-08,90685.0,90684.0,0.2340358]
[1765282814419,1e-08,90685.0,90684.0,0.24403398]
[1765282816291,1e-08,90685.0,90684.0,0.56703398]
[1765282816715,1e-08,90685.0,90684.0,0.64573182]
[1765282816894,1e-08,90685.0,90684.0,0.56603398]
[1765282817086,0.00078525,90690.0,90684.0,0.56603398]
[1765282817087,1e-08,90690.0,90689.0,0.54353391]
[1765282817294,1e-08,90690.0,90689.0,0.62949559]
[1765282817691,1e-08,90690.0,90689.0,0.72788919]
[1765282817898,1e-08,90690.0,90689.0,0.72788923]
[1765282818136,1e-08,90690.0,90689.0,0.62949559]
[1765282818316,1e-08,90690.0,90689.0,0.5689726]
[1765282818512,1e-08,90690.0,90689.0,0.5864126]
[1765282818734,1e-08,90690.0,90689.0,0.5844126]
[1765282819313,1e-08,90690.0,90689.0,0.5874126]
[1765282819729,1e-08,90690.0,90689.0,0.64993559]
[1765282819978,0.0004,90710.0,90709.0,0.24246154]
[1765282820168,0.00051555,90710.0,90709.0,0.26136397]
[1765282821139,0.00051555,90710.0,90709.0,0.26236397]
[1765282821566,0.00051555,90710.0,90709.0,0.26136397]
[1765282821697,2.0,90728.0,90727.0,0.22044154]
[1765282821911,2.0,90728.0,90727.0,0.23934397]
[1765282822113,2.0,90728.0,90727.0,0.22190397]
[1765282822352,2.0,90728.0,90727.0,0.23934397]
[1765282823196,2.0,90728.0,90727.0,0.26332023]
[1765282823562,2.0,90728.0,90727.0,0.26132023]
[1765282823766,2.0,90728.0,90727.0,0.23934397]
[1765282824001,2.0,90728.0,90727.0,0.22144154]
[1765282824202,2.01539,90728.0,90727.0,0.23888154]
[1765282824395,2.01539,90728.0,90727.0,0.26068839]
[1765282824596,2.01539,90728.0,90727.0,0.26268839]
[1765282824809,2.0,90728.0,90727.0,0.22144154]
[1765282825469,2.0,90728.0,90727.0,0.25967534]
[1765282825988,2.0,90728.0,90727.0,0.26067534]
[1765282826436,2.0,90728.0,90727.0,0.22044154]
[1765282827231,2.03911,90728.0,90727.0,0.22044154]
[1765282827427,2.0,90728.0,90727.0,0.24986103]
[1765282827633,2.0,90728.0,90727.0,0.22044154]
[1765282828645,2.0012738,90728.0,90727.0,0.22044154]
[1765282828858,2.0170438,90728.0,90727.0,0.22044154]
[1765282829208,2.0012738,90728.0,90727.0,0.22044154]
[1765282829411,2.0170438,90728.0,90727.0,0.22044154]
[1765282829577,2.0403838,90728.0,90727.0,0.22044154]
[1765282829993,2.0012738,90728.0,90727.0,0.2424178]
[1765282830445,2.0012738,90728.0,90727.0,0.24388023]
[1765282831042,2.0012738,90728.0,90727.0,0.28311403]
[1765282831183,2.0012738,90728.0,90727.0,0.24388023]
[1765282831405,2.0012738,90728.0,90727.0,0.28307679]
[1765282831609,2.0012738,90728.0,90727.0,0.56688023]
[1765282831813,2.0012738,90728.0,90727.0,0.56788023]
[1765282832388,2.0012738,90728.0,90727.0,0.62766249]
[1765282832572,2.0012738,90728.0,90727.0,0.57088023]
[1765282832830,2.0170438,90728.0,90727.0,0.54690397]
[1765282833060,2.0012738,90728.0,90727.0,0.22390397]
[1765282833265,2.0012738,90728.0,90727.0,0.22790397]
[1765282833696,2.0012738,90728.0,90727.0,0.006]
[1765282833697,2.0403838,90728.0,90727.0,0.006]
[1765282833909,2.0403838,90728.0,90727.0,0.002]
[1765282834525,2.0403838,90728.0,90727.0,0.22044154]
[1765282835341,2.0170438,90728.0,90727.0,0.22044154]
[1765282835750,2.0012738,90728.0,90727.0,0.22044154]
[1765282836310,2.0170438,90728.0,90727.0,0.22044154]
[1765282836873,2.0403838,90728.0,90727.0,0.22044154]
[1765282837561,2.0170438,90728.0,90727.0,0.22044154]
[1765282837955,2.0403838,90728.0,90727.0,0.22044154]
[1765282838108,2.0170438,90728.0,90727.0,0.22044154]
[1765282839317,2.0403838,90728.0,90727.0,0.22044154]
[1765282841305,2.0170438,90728.0,90727.0,0.22044154]
[1765282841596,2.0012738,90728.0,90727.0,0.22044154]
[1765282842349,2.0135238,90728.0,90727.0,0.22044154]
[1765282842550,2.0012738,90728.0,90727.0,0.22044154]
[1765282842950,2.0526338,90728.0,90727.0,0.22044154]
[1765282843516,2.0526338,90728.0,90727.0,0.24983464]
[1765282844270,2.0526338,90728.0,90727.0,0.22044154]
[1765282844521,2.0526338,90728.0,90726.0,0.24983621]
[1765282844839,2.0526338,90728.0,90719.0,0.2204592]
[1765282844840,0.22045379,90722.0,90719.0,0.0293931]
[1765282845041,0.01577,90720.0,90719.0,0.22046098]
[1765282845327,0.03911,90720.0,90719.0,0.22046098]
[1765282846863,0.03911,90720.0,90718.0,0.23148613]
[1765282847059,0.05136,90719.0,90718.0,0.23148613]
[1765282847484,0.05136,90719.0,90718.0,0.01102317]
[1765282847685,0.05136,90719.0,90713.0,0.03918463]
[1765282847686,0.22046827,90716.0,90713.0,0.03918463]
[1765282847905,0.22046827,90716.0,90715.0,0.0295102]
[1765282847906,0.23149168,90716.0,90715.0,0.0295102]
[1765282848142,0.23149678,90714.0,90713.0,0.02951257]
[1765282848557,0.22047556,90713.0,90712.0,0.02951257]
[1765282848828,0.2204906,90707.0,90705.0,0.02951257]
[1765282848990,0.23626258,90706.0,90705.0,0.02951257]
[1765282849329,0.23626258,90706.0,90701.0,0.02951257]
[1765282849330,0.22049501,90705.0,90701.0,0.02951257]
[1765282849532,0.02342063,90705.0,90703.0,0.22049987]
[1765282849708,0.05136,90704.0,90702.0,0.01102511]
[1765282849893,0.03559,90704.0,90703.0,0.22049781]
[1765282850110,0.01225,90704.0,90703.0,0.22049781]
[1765282850462,0.02802,90704.0,90703.0,0.22049781]
[1765282850595,0.05136,90704.0,90703.0,0.22049781]
[1765282850803,0.001,90704.0,90703.0,0.22196024]
[1765282851202,8.063e-05,90705.0,90703.0,0.22196024]
[1765282851454,8.063e-05,90705.0,90704.0,0.02204974]
[1765282851670,8.063e-05,90705.0,90704.0,0.04548843]
[1765282851845,0.00208063,90705.0,90704.0,0.04548843]
[1765282852079,8.063e-05,90705.0,90704.0,0.08467306]
[1765282852215,8.063e-05,90705.0,90704.0,0.04548843]
[1765282854933,0.01225,90719.0,90717.0,0.22046584]
[1765282855138,0.01225,90719.0,90718.0,0.02946611]
[1765282855325,0.0241,90732.0,90727.0,0.22044154]
[1765282855525,2.01233066,90728.0,90727.0,0.22044154]
[1765282855722,2.02987446,90728.0,90727.0,0.22044154]
[1765282856924,2.03187446,90728.0,90727.0,0.22044154]
[1765282857408,2.05397446,90728.0,90727.0,0.22044154]
[1765282857966,2.02987446,90728.0,90727.0,0.22044154]
[1765282858580,2.01560446,90728.0,90727.0,0.22044154]
[1765282858812,2.02987446,90728.0,90727.0,0.22044154]
[1765282860952,2.05397446,90728.0,90727.0,0.22044154]
[1765282861155,2.01360446,90728.0,90727.0,0.22044154]
[1765282861608,2.00135446,90728.0,90727.0,0.22044154]
[1765282863352,2.00135446,90728.0,90727.0,0.25972968]
[1765282865046,2.00135446,90728.0,90727.0,0.2424178]
[1765282865272,2.00135446,90728.0,90727.0,0.24388023]
[1765282866454,2.00135446,90728.0,90727.0,0.30281245]
[1765282867280,2.00135446,90728.0,90727.0,0.26132023]
[1765282870109,2.00135446,90728.0,90727.0,0.32025245]
[1765282870647,2.00135446,90728.0,90727.0,0.26132023]
[1765282871772,2.00135446,90728.0,90727.0,0.26532023]
[1765282871917,2.00135446,90728.0,90727.0,0.26732023]
[1765282874561,2.00135446,90728.0,90727.0,0.24534397]
[1765282874782,2.04174446,90728.0,90727.0,0.22644154]
[1765282875228,2.26218357,90728.0,90727.0,0.004]
[1765282875456,2.04174446,90728.0,90725.0,0.23146689]
[1765282875677,0.01577,90726.0,90725.0,0.23146689]
[1765282876105,0.04039,90726.0,90725.0,0.23146689]
[1765282877842,0.04139,90726.0,90725.0,0.23146689]
[1765282878269,0.04239,90726.0,90725.0,0.23146689]
[1765282881077,0.04360458,90726.0,90725.0,0.23146689]
[1765282884919,0.04360458,90726.0,90719.0,0.02940316]
[1765282884920,0.01102268,90722.0,90719.0,0.02940316]
[1765282885151,0.01102268,90722.0,90717.0,0.01102329]
[1765282885152,0.01549,90720.0,90718.0,0.02940316]
[1765282885404,0.0110228,90721.0,90716.0,0.02940316]
[1765282885405,0.027,90718.0,90716.0,0.02940316]
[1765282885638,0.02208788,90715.0,90712.0,0.01102389]
[1765282885865,0.02208788,90715.0,90710.0,0.00546923]
[1765282886074,0.01549,90711.0,90710.0,0.23697622]
[1765282886499,0.03933,90711.0,90710.0,0.23697622]
[1765282886709,0.03933,90711.0,90710.0,0.00546923]
[1765282886906,0.25981042,90711.0,90710.0,0.00546923]
[1765282887709,0.03933,90711.0,90710.0,0.00646923]
[1765282887927,0.03933,90711.0,90710.0,0.00546923]
[1765282888125,0.03933,90711.0,90710.0,0.22595208]
[1765282888328,0.04033,90711.0,90710.0,0.22595208]
[1765282888528,0.03933,90711.0,90710.0,0.22595208]
[1765282888938,0.04133,90711.0,90710.0,0.00546923]
[1765282889838,0.04333,90711.0,90710.0,0.22595208]
[1765282889989,0.04333,90711.0,90710.0,0.00546923]
[1765282890359,0.04333,90711.0,90710.0,0.22595208]
[1765282890643,0.04410035,90711.0,90710.0,0.22595208]
[1765282891950,0.04410035,90711.0,90710.0,0.00546923]
[1765282892151,0.04410035,90711.0,90710.0,0.22595208]
[1765282893943,0.05561035,90711.0,90710.0,0.22595208]
[1765282894376,0.05561035,90711.0,90710.0,0.00546923]
[1765282894826,0.05561035,90711.0,90710.0,0.22595208]
[1765282895231,0.05561035,90711.0,90710.0,0.00546923]
[1765282895470,0.27609077,90711.0,90710.0,0.00546923]
[1765282896107,0.05561035,90711.0,90710.0,0.22595208]
[1765282897196,0.05561035,90711.0,90710.0,0.00546923]
[1765282897543,0.27609077,90711.0,90710.0,0.00546923]
[1765282898618,0.05561035,90711.0,90710.0,0.00546923]
[1765282898968,0.27609077,90711.0,90710.0,0.00546923]
[1765282899371,0.28608533,90711.0,90710.0,0.00546923]
[1765282900487,0.28408533,90711.0,90710.0,0.00546923]
[1765282900689,0.28208533,90711.0,90710.0,0.00546923]
[1765282900906,0.28508533,90711.0,90710.0,0.00546923]
[1765282901106,0.28908533,90711.0,90710.0,0.00546923]
[1765282901512,0.05861035,90711.0,90710.0,0.00546923]
[1765282901717,0.01928035,90711.0,90710.0,0.00546923]
[1765282902130,0.00777035,90711.0,90710.0,0.00693166]
[1765282902330,0.00777035,90711.0,90710.0,0.02890792]
[1765282902535,0.00477035,90711.0,90710.0,0.00693166]
[1765282902735,0.00477035,90711.0,90710.0,0.03637544]
[1765282902994,0.01626035,90711.0,90710.0,0.00693166]
[1765282903129,0.04010035,90711.0,90710.0,0.03637544]
[1765282903665,0.04010035,90711.0,90710.0,0.03738984]
[1765282904177,0.04010035,90711.0,90710.0,0.00793166]
[1765282904723,0.04010035,90711.0,90710.0,0.02537166]
[1765282905477,0.01626035,90711.0,90710.0,0.02537166]
[1765282906099,0.00077035,90711.0,90710.0,0.02537166]
[1765282907270,0.00077035,90711.0,90710.0,0.0645676]
[1765282907610,0.01626035,90711.0,90710.0,0.0645676]
[1765282907818,0.04010035,90711.0,90710.0,0.0645676]
[1765282908206,0.04010035,90711.0,90710.0,0.0471276]
[1765282908376,0.04010035,90711.0,90710.0,0.00646923]
[1765282909539,0.04010035,90711.0,90710.0,0.00546923]
[1765282909685,0.04110035,90711.0,90710.0,0.00546923]
[1765282914021,0.04110035,90711.0,90710.0,0.22595208]
[1765282917000,0.05281035,90711.0,90710.0,0.22595208]
[1765282917751,0.05281035,90711.0,90710.0,0.00546923]
[1765282918018,0.27329077,90711.0,90710.0,0.00546923]
[1765282918152,0.29537865,90711.0,90710.0,0.00546923]
[1765282919003,0.27329077,90711.0,90710.0,0.00546923]
[1765282919180,0.29537865,90711.0,90710.0,0.00546923]
[1765282919751,0.29437865,90711.0,90710.0,0.00546923]
[1765282920212,0.29637865,90711.0,90710.0,0.00546923]
[1765282920619,0.07589823,90711.0,90710.0,0.22595208]
[1765282920778,0.05381035,90711.0,90710.0,0.00546923]
[1765282921204,0.27429077,90711.0,90710.0,0.00546923]
[1765282922043,0.05381035,90711.0,90710.0,0.00546923]
[1765282922248,0.05481035,90711.0,90710.0,0.00546923]
[1765282922397,0.05381035,90711.0,90710.0,0.00546923]
[1765282922841,0.05581035,90711.0,90710.0,0.22595208]
[1765282923671,0.05581035,90711.0,90710.0,0.00546923]
[1765282923863,0.05581035,90711.0,90710.0,0.22595208]
[1765282924980,0.05181035,90711.0,90710.0,0.22595208]
[1765282925147,0.05281035,90711.0,90710.0,0.00546923]
[1765282925356,0.05281035,90711.0,90710.0,0.22595208]
[1765282925553,0.05281035,90711.0,90710.0,0.00546923]